fUSD/lending_fUSD_20260225
["ID","MTS","AMOUNT","RATE_DAILY","PERIOD"]
[406637113,1772002232433,-500.0,9.402e-05,2]
[406637114,1772002232443,-738.0,9.527e-05,2]
[406637115,1772002232452,-1326.0,9.546e-05,2]
[406637116,1772002232462,-156.22,9.594e-05,2]
[406637117,1772002232471,-156.22,9.864e-05,2]
[406637118,1772002232480,-151.0,9.893e-05,2]
[406637119,1772002232489,-500.0,9.895e-05,2]
[406637120,1772002232499,-332.9363957,9.895e-05,2]
[406637121,1772002232508,-571.74431762,9.895e-05,2]
[406637122,1772002232517,-500.0,9.895e-05,2]
[406637123,1772002232526,-500.0,9.895e-05,2]
[406637124,1772002232535,-500.0,9.895e-05,2]
[406637125,1772002232544,-500.0,9.895e-05,2]
[406637126,1772002232553,-500.0,9.895e-05,2]
[406637127,1772002232563,-500.0,9.895e-05,2]
[406637128,1772002232571,-500.0,9.895e-05,2]
[406637129,1772002232584,-500.0,9.895e-05,2]
[406637130,1772002232593,-500.0,9.895e-05,2]
[406637131,1772002232602,-500.0,9.895e-05,2]
[406637132,1772002232611,-500.0,9.895e-05,2]
[406637133,1772002232620,-500.0,9.895e-05,2]
[406637134,1772002232629,-500.0,9.895e-05,2]
[406637135,1772002232638,-500.0,9.895e-05,2]
[406637136,1772002232647,-500.0,9.895e-05,2]
[406637137,1772002232657,-500.0,9.895e-05,2]
[406637138,1772002232668,-500.0,9.895e-05,2]
[406637139,1772002232676,-500.0,9.895e-05,2]
[406637140,1772002232685,-500.0,9.895e-05,2]
[406637141,1772002232694,-500.0,9.895e-05,2]
[406637142,1772002232703,-500.0,9.895e-05,2]
[406637143,1772002232712,-500.0,9.895e-05,2]
[406637144,1772002232722,-500.0,9.895e-05,2]
[406637145,1772002232731,-500.0,9.895e-05,2]
[406637146,1772002232740,-500.0,9.895e-05,2]
[406637147,1772002232749,-500.0,9.895e-05,2]
[406637148,1772002232758,-500.0,9.895e-05,2]
[406637149,1772002232767,-500.0,9.895e-05,2]
[406637150,1772002232776,-500.0,9.895e-05,2]
[406637151,1772002232785,-200.96061944,9.895e-05,2]
[406637152,1772002232794,-500.0,9.895e-05,2]
[406637153,1772002232803,-500.0,9.895e-05,2]
[406637154,1772002232813,-500.0,9.895e-05,2]
[406637155,1772002232822,-500.0,9.895e-05,2]
[406637156,1772002232832,-500.0,9.895e-05,2]
[406637157,1772002232841,-500.0,9.895e-05,2]
[406637158,1772002232850,-500.0,9.895e-05,2]
[406637159,1772002232859,-366474.50875546,9.896e-05,2]
[406637160,1772002232871,-51365.87822618,9.896e-05,2]
[406637161,1772002232881,-18030.86174214,9.896e-05,2]
[406637162,1772002232892,-326.9478,9.896e-05,2]
[406637163,1772002232903,-3862.76401059,9.896e-05,2]
[406637164,1772002238150,-346.23645864,9.896e-05,2]
[406637165,1772002238272,-531.13294994,9.896e-05,2]
[406637179,1772002240655,-1059.80161734,9.896e-05,2]
[406637180,1772002241025,-1091.00000001,9.896e-05,2]
[406637181,1772002241044,-1556910.8684397,9.896e-05,2]
[406637182,1772002241057,-255.0,9.921e-05,2]
[406637183,1772002241069,-296.74949591,0.0001,2]
[406637184,1772002241078,-216.295,0.0001005,2]
[406637185,1772002241088,-2209.291,0.0001005,2]
[406637186,1772002241098,-2351.0,0.00010077,2]
[406637187,1772002241108,-587.0,0.00010077,2]
[406637188,1772002241118,-200.44,0.00010081,2]
[406637189,1772002241129,-156.22,0.00010135,2]
[406637190,1772002241141,-500.0,0.00010168,2]
[406637191,1772002241153,-1846.57,0.00010241,2]
[406637192,1772002241163,-150.0,0.00010281,2]
[406637193,1772002241178,-500.0,0.00010281,2]
[406637194,1772002241188,-718.0,0.00010281,2]
[406637195,1772002241198,-150.0,0.00010281,2]
[406637196,1772002241211,-500.0,0.00010281,2]
[406637197,1772002241223,-151.0,0.00010294,2]
[406637198,1772002241233,-151.0,0.00010294,2]
[406637199,1772002241243,-151.0,0.00010294,2]
[406637200,1772002241254,-151.0,0.00010294,2]
[406637201,1772002241265,-151.0,0.00010294,2]
[406637202,1772002241275,-151.0,0.00010294,2]
[406637203,1772002241286,-151.0,0.00010294,2]
[406637204,1772002241297,-151.0,0.00010294,2]
[406637205,1772002241307,-151.0,0.00010294,2]
[406637206,1772002241317,-151.0,0.00010294,2]
[406637207,1772002241327,-151.0,0.00010294,2]
[406637208,1772002241336,-151.0,0.00010294,2]
[406637209,1772002241347,-151.0,0.00010294,2]
[406637210,1772002241357,-151.0,0.00010294,2]
[406637211,1772002241368,-151.0,0.00010294,2]
[406637212,1772002241379,-151.0,0.00010294,2]
[406637213,1772002241389,-151.0,0.00010294,2]
[406637214,1772002241400,-151.0,0.00010294,2]
[406637215,1772002241410,-151.0,0.00010294,2]
[406637216,1772002241424,-151.0,0.00010294,2]
[406637218,1772002241434,-1000.0,0.00010299,2]
[406637219,1772002241444,-500.0,0.00010299,2]
[406637220,1772002241455,-167.42556134,0.00010299,2]
[406637221,1772002241465,-500.0,0.00010299,2]
[406637222,1772002241476,-393.07992598,0.00010299,2]
[406637223,1772002241487,-611.11529278,0.000103,2]
[406637224,1772002241500,-500.0,0.000103,2]
[406637225,1772002241510,-500.0,0.000103,2]
[406637226,1772002241520,-500.0,0.000103,2]
[406637227,1772002241531,-500.0,0.000103,2]
[406637228,1772002241541,-500.0,0.000103,2]
[406637229,1772002241552,-500.0,0.000103,2]
[406637230,1772002241562,-977.54963407,0.000103,2]
[406637231,1772002241573,-700.0,0.000103,2]
[406637232,1772002241583,-700.0,0.000103,2]
[406637233,1772002241593,-700.0,0.000103,2]
[406637234,1772002241604,-700.0,0.000103,2]
[406637235,1772002241614,-700.0,0.000103,2]
[406637236,1772002241625,-700.0,0.000103,2]
[406637237,1772002241635,-700.0,0.000103,2]
[406637238,1772002241646,-700.0,0.000103,2]
[406637239,1772002241656,-700.0,0.000103,2]
[406637240,1772002241669,-700.0,0.000103,2]
[406637241,1772002241680,-700.0,0.000103,2]
[406637242,1772002241690,-700.0,0.000103,2]
[406637243,1772002241700,-753.13710309,0.000103,2]
[406637244,1772002241711,-500.0,0.000103,2]
[406637245,1772002241721,-500.0,0.000103,2]
[406637246,1772002241731,-500.0,0.000103,2]
[406637247,1772002241741,-500.0,0.000103,2]
[406637248,1772002241752,-500.0,0.000103,2]
[406637249,1772002241763,-671.44542235,0.000103,2]
[406637250,1772002241773,-150.0,0.00010336,2]
[406637251,1772002241783,-500.0,0.00010336,2]
[406637252,1772002241794,-718.0,0.00010336,2]
[406637253,1772002241804,-224.51537802,0.00010336,2]
[406637254,1772002241814,-500.0,0.00010336,2]
[406637255,1772002241824,-500.0,0.00010391,2]
[406637256,1772002241835,-239.51706489,0.00010391,2]
[406637257,1772002241845,-718.0,0.00010391,2]
[406637258,1772002241855,-500.0,0.00010391,2]
[406637259,1772002241865,-83659.2068,0.00010428,2]
[406637260,1772002241876,-500.0,0.00010445,2]
[406637261,1772002241886,-718.0,0.00010445,2]
[406637262,1772002241896,-500.0,0.00010445,2]
[406637263,1772002241907,-500.0,0.000105,2]
[406637264,1772002241918,-718.0,0.000105,2]
[406637265,1772002241928,-500.0,0.000105,2]
[406637266,1772002241939,-500.0,0.00010555,2]
[406637267,1772002241949,-718.0,0.00010555,2]
[406637268,1772002241960,-219.84961923,0.00010555,2]
[406637269,1772002241970,-500.0,0.00010573,2]
[406637270,1772002241981,-500.0,0.0001061,2]
[406637271,1772002241992,-718.0,0.0001061,2]
[406637272,1772002242003,-500.0,0.00010665,2]
[406637273,1772002242014,-718.0,0.00010665,2]
[406637274,1772002242025,-500.0,0.00010719,2]
[406637275,1772002242036,-718.0,0.00010719,2]
[406637276,1772002242046,-500.0,0.00010774,2]
[406637277,1772002242055,-718.0,0.00010774,2]
[406637278,1772002242063,-500.0,0.00010829,2]
[406637279,1772002242073,-718.0,0.00010829,2]
[406637280,1772002242083,-250.0,0.00010835,2]
[406637281,1772002242091,-486.46,0.00010868,2]
[406637282,1772002242297,-500.0,0.00010884,2]
[406637283,1772002242311,-718.0,0.00010884,2]
[406637284,1772002242320,-195.0,0.00010913,2]
[406637285,1772002242329,-500.0,0.00010939,2]
[406637286,1772002242338,-718.0,0.00010939,2]
[406637287,1772002242347,-16923.76,0.00010959,2]
[406637288,1772002242357,-500.0,0.00010993,2]
[406637289,1772002242366,-718.0,0.00010993,2]
[406637290,1772002242375,-500.0,0.00011048,2]
[406637291,1772002242384,-718.0,0.00011048,2]
[406637292,1772002242393,-1649.0,0.00011084,2]
[406637293,1772002242402,-823.0,0.00011084,2]
[406637294,1772002242411,-234.33725537,0.00011099,2]
[406637295,1772002242422,-234.33725533,0.00011099,2]
[406637296,1772002242431,-391.0,0.00011103,2]
[406637297,1772002242440,-718.0,0.00011103,2]
[406637298,1772002242448,-1481.0,0.00011115,2]
[406637299,1772002242457,-1000.0,0.00011121,2]
[406637300,1772002242466,-1215.85359805,0.00011137,2]
[406637301,1772002242475,-718.0,0.00011158,2]
[406637302,1772002242484,-718.0,0.00011213,2]
[406637303,1772002242493,-15502.5303,0.00011256,2]
[406637304,1772002242502,-2500.0,0.00011257,2]
[406637305,1772002242511,-718.0,0.00011267,2]
[406637306,1772002242520,-156.02756201,0.00011312,2]
[406637307,1772002242529,-718.0,0.00011322,2]
[406637308,1772002242538,-718.0,0.00011377,2]
[406637309,1772002242547,-718.0,0.00011432,2]
[406637310,1772002242557,-718.0,0.00011486,2]
[406637311,1772002242566,-718.0,0.00011541,2]
[406637312,1772002242575,-234.33725533,0.00011616,2]
[406637313,1772002242584,-485.72025731,0.00011668,2]
[406637314,1772002242593,-1000.0,0.00011668,2]
[406637315,1772002242602,-425.09831696,0.00011802,2]
[406637316,1772002242611,-1152.0,0.00012193,2]
[406637317,1772002242620,-300.0,0.00012464,4]
[406637318,1772002242630,-234.33725533,0.00012514,2]
[406637319,1772002242639,-500.0,0.0001289,2]
[406637320,1772002242648,-500.0,0.0001289,2]
[406637321,1772002242657,-500.0,0.0001289,2]
[406637322,1772002242666,-500.0,0.0001289,2]
[406637323,1772002242675,-500.0,0.0001289,2]
[406637324,1772002242685,-500.0,0.0001289,2]
[406637325,1772002242694,-500.0,0.0001289,2]
[406637326,1772002242703,-700.0,0.0001289,2]
[406637327,1772002242712,-500.0,0.0001289,2]
[406637328,1772002242721,-700.0,0.0001289,2]
[406637329,1772002242731,-500.0,0.0001289,2]
[406637330,1772002242740,-700.0,0.0001289,2]
[406637331,1772002242750,-700.0,0.0001289,2]
[406637332,1772002242759,-700.0,0.0001289,2]
[406637333,1772002242768,-700.0,0.0001289,2]
[406637334,1772002242776,-700.0,0.0001289,2]
[406637335,1772002242786,-700.0,0.0001289,2]
[406637336,1772002242794,-700.0,0.0001289,2]
[406637337,1772002242803,-700.0,0.0001289,2]
[406637338,1772002242812,-700.0,0.0001289,2]
[406637339,1772002242821,-700.0,0.0001289,2]
[406637340,1772002242830,-700.0,0.0001289,2]
[406637341,1772002242838,-700.0,0.0001289,2]
[406637342,1772002242847,-504.04222443,0.0001289,2]
[406637343,1772002242856,-500.0,0.0001289,2]
[406637344,1772002242865,-500.0,0.0001289,2]
[406637345,1772002242874,-500.0,0.0001289,2]
[406637346,1772002242883,-500.0,0.0001289,2]
[406637347,1772002242892,-500.0,0.0001289,2]
[406637348,1772002242901,-500.0,0.0001289,2]
[406637350,1772002242910,-1544.4,0.00012893,2]
[406637351,1772002242920,-234.33725533,0.00013412,2]
[406637352,1772002242930,-1603.0,0.00013412,2]
[406637354,1772002242942,-200.23,0.00013699,2]
[406637355,1772002242952,-200.0,0.00013699,2]
[406637356,1772002242961,-160.0,0.00013884,2]
[406637357,1772002242970,-173.91437885,0.00013884,2]
[406637358,1772002242983,-1000.0,0.00014241,2]
[406637359,1772002242992,-234.33725533,0.00014309,2]
[406637360,1772002243001,-200.23,0.00014384,2]
[406637361,1772002243010,-156.02756201,0.00014606,2]
[406637362,1772002243020,-3240.0,0.00014867,2]
[406637363,1772002243029,-200.23,0.00015068,2]
[406637364,1772002243038,-504.0,0.00015101,2]
[406637365,1772002243047,-500.0,0.00015105,2]
[406637366,1772002243056,-150.0,0.00015105,2]
[406637367,1772002243065,-234.33725533,0.00015207,2]
[406637368,1772002243073,-160.67,0.00015358,2]
[406637369,1772002243082,-1000.0,0.00015507,2]
[406637370,1772002243091,-200.44,0.00015507,2]
[406637371,1772002243100,-160.0,0.000157,30]
[406637372,1772002243109,-200.23,0.00015753,2]
[406637373,1772002243118,-1000.0,0.00015895,2]
[406637374,1772002243127,-160.08356589,0.0001601,7]
[406637375,1772002243135,-1000.0,0.00016021,2]
[406637376,1772002243145,-300.0,0.00016076,5]
[406637377,1772002243154,-234.33725533,0.00016105,2]
[406637378,1772002243164,-1000.0,0.00016282,2]
[406637379,1772002243175,-1055.0,0.00016438,2]
[406637380,1772002243184,-200.23,0.00016438,2]
[406637381,1772002243194,-1000.0,0.0001667,2]
[406637383,1772002243203,-165.38,0.00016712,2]
[406637384,1772002243212,-200.0,0.00016792,2]
[406637385,1772002243224,-280.22014743,0.0001683,2]
[406637386,1772002243233,-167.01633691,0.00016934,2]
[406637387,1772002243243,-234.33725533,0.00017002,2]
[406637388,1772002243254,-1000.0,0.00017058,2]
[406637389,1772002243263,-486.46,0.00017063,2]
[406637390,1772002243272,-50103.402458,0.000171,2]
[406637391,1772002243282,-318.044735,0.00017136,7]
[406637392,1772002243293,-504.0,0.00017505,4]
[406637393,1772002243302,-1543.44122829,0.00017608,2]
[406637394,1772002243311,-1326.95458225,0.0001764,2]
[406637395,1772002243320,-1543.44122827,0.00017657,2]
[406637396,1772002243329,-1543.44122827,0.00017705,2]
[406637397,1772002243338,-1543.44122827,0.00017754,2]
[406637398,1772002243347,-1000.0,0.00017802,2]
[406637399,1772002243356,-1543.44122827,0.00017803,2]
[406637400,1772002243365,-739.09795978,0.00017808,2]
[406637401,1772002243374,-739.09795978,0.00017808,2]
[406637402,1772002243383,-739.09795978,0.00017808,2]
[406637403,1772002243393,-739.09795978,0.00017808,2]
[406637404,1772002243402,-739.09795978,0.00017808,2]
[406637405,1772002243411,-739.09795978,0.00017808,2]
[406637406,1772002243422,-739.09795978,0.00017808,2]
[406637407,1772002243431,-739.09795978,0.00017808,2]
[406637408,1772002243441,-739.09795978,0.00017808,2]
[406637409,1772002243450,-739.09795978,0.00017808,2]
[406637410,1772002243459,-739.09795978,0.00017808,2]
[406637411,1772002243468,-739.09795978,0.00017808,2]
[406637412,1772002243478,-739.09795978,0.00017808,2]
[406637413,1772002243487,-739.09795978,0.00017808,2]
[406637414,1772002243496,-739.09795978,0.00017808,2]
[406637415,1772002243506,-776.05285777,0.00017808,2]
[406637416,1772002243514,-776.05285777,0.00017808,2]
[406637417,1772002243524,-776.05285777,0.00017808,2]
[406637418,1772002243533,-776.05285777,0.00017808,2]
[406637419,1772002243543,-776.05285777,0.00017808,2]
[406637420,1772002243552,-776.05285777,0.00017808,2]
[406637421,1772002243561,-776.05285777,0.00017808,2]
[406637422,1772002243571,-776.05285777,0.00017808,2]
[406637423,1772002243580,-776.05285777,0.00017808,2]
[406637424,1772002243590,-776.05285777,0.00017808,2]
[406637425,1772002243599,-879.52657214,0.00017808,2]
[406637426,1772002243608,-879.52657214,0.00017808,2]
[406637427,1772002243618,-879.52657214,0.00017808,2]
[406637428,1772002243628,-800.0,0.00017808,2]
[406637429,1772002243637,-2000.0,0.0001783,2]
[406637430,1772002243647,-1543.44122827,0.00017851,2]
[406637431,1772002243656,-2000.0,0.0001788,2]
[406637433,1772002243666,-32879.9337,0.000179,2]
[406637434,1772002243676,-1000.0,0.000179,2]
[406637435,1772002243686,-1543.44122827,0.000179,2]
[406637436,1772002243695,-10000.0,0.000179,2]
[406637437,1772002243704,-1340.0,0.000179,2]
[406637438,1772002243714,-3497.0,0.000179,2]
[406637439,1772002243723,-1040.0,0.000179,2]
[406637440,1772002243732,-1210.0,0.000179,2]
[406637441,1772002243742,-150.0,0.000179,2]
[406637442,1772002243751,-1277.0,0.000179,2]
[406637443,1772002243760,-156.02756201,0.000179,2]
[406637444,1772002243770,-234.33725533,0.000179,2]
[406637445,1772002243780,-1176.38430762,0.000179,2]
[406637446,1772002243789,-8870.77530301,0.000179,2]
[406637447,1772002243799,-2104.6676963,0.000179,3]
[406637448,1772002243808,-563.26467793,0.000179,2]
[406637449,1772002243819,-5982.0,0.000179,2]
[406637450,1772002243829,-413.0,0.000179,2]
[406637451,1772002243839,-2456.0,0.000179,2]
[406637452,1772002243848,-6479.0,0.000179,2]
[406637453,1772002243858,-2000.0,0.0001793,2]
[406637454,1772002243867,-2000.0,0.0001798,2]
[406637455,1772002243876,-227.23819075,0.00017982,2]
[406637456,1772002243886,-296.74949591,0.0001799,2]
[406637457,1772002243896,-296.74949591,0.0001799,2]
[406637458,1772002243905,-10399.5830438,0.00017994,2]
[406637459,1772002243914,-48958.4434122,0.00017994,2]
[406637460,1772002243924,-1002.2649398,0.00017994,2]
[406637461,1772002243933,-151.0,0.00017997,2]
[406637462,1772002243942,-300.0,0.00017999,2]
[406637463,1772002243952,-666.0,0.00017999,2]
[406637464,1772002243961,-300.0,0.00017999,2]
[406637465,1772002243971,-182.34130669,0.00017999,2]
[406637466,1772002243981,-300.0,0.00017999,2]
[406637467,1772002243990,-666.0,0.00017999,2]
[406637468,1772002244000,-339.83739993,0.00017999,2]
[406637469,1772002244009,-300.0,0.00017999,2]
[406637470,1772002244018,-300.0,0.00017999,2]
[406637471,1772002244028,-666.0,0.00017999,2]
[406637472,1772002244037,-300.0,0.00017999,2]
[406637473,1772002244046,-387.10244048,0.00017999,2]
[406637474,1772002244055,-2375530.04330615,0.00018,2]
[406637475,1772002244108,-109021.71109664,0.00018,2]
[406637476,1772002244122,-953743.22109502,0.00018,2]
[406637477,1772002244133,-1748.445,0.00018,2]
[406637478,1772002246383,-4579.19,0.00018,2]
[406637479,1772002246394,-302.0,0.00018,2]
[406637483,1772002732532,2395.73917325,0.00012,30]
[406637488,1772003432256,-162.72,8.43e-05,2]
[406637489,1772003432266,-834.0,8.549e-05,2]
[406637490,1772003432275,-300.0,8.549e-05,2]
[406637491,1772003432288,-1200.0,8.549e-05,2]
[406637492,1772003432297,-5000.0,8.55e-05,2]
[406637493,1772003432307,-250.0,8.55e-05,2]
[406637494,1772003432316,-1500.0,8.671e-05,2]
[406637495,1772003432325,-150.0,8.674e-05,2]
[406637496,1772003432335,-5000.0,8.675e-05,2]
[406637497,1772003432344,-1208.65625914,8.675e-05,2]
[406637498,1772003432355,-445.83576966,8.675e-05,2]
[406637499,1772003432366,-1949.7,8.675e-05,2]
[406637500,1772003432380,-1395.8079712,8.675e-05,2]
[406637501,1772003432389,-975.6920288,8.675e-05,2]
[406637502,1772003432401,-368.42368001,8.675e-05,2]
[406637503,1772003432411,-645.10769605,8.675e-05,2]
[406637504,1772003432423,-3010.77659514,8.675e-05,2]
[406637505,1772003432432,-2209.291,8.706e-05,2]
[406637506,1772003432441,-216.295,8.706e-05,2]
[406637507,1772003432450,-668.94098582,8.706e-05,2]
[406637508,1772003432459,-668.94098582,8.75e-05,2]
[406637509,1772003432468,-1000.0,8.782e-05,2]
[406637510,1772003432478,-485.72025731,8.783e-05,2]
[406637511,1772003432487,-121370.04808304,8.784e-05,2]
[406637512,1772003432498,-122350.9757014,8.784e-05,2]
[406637513,1772003432509,-6093.98213619,8.784e-05,2]
[406637514,1772003432522,-5880.0,8.784e-05,2]
[406637515,1772003432533,-1300.0,8.784e-05,2]
[406637516,1772003432545,-3250.0,8.784e-05,2]
[406637519,1772003438374,-2944.77445898,8.784e-05,2]
[406637520,1772003438386,-1312.44985994,8.784e-05,2]
[406637521,1772003438397,-301.22878301,8.784e-05,2]
[406637544,1772003440535,-619.79953706,8.784e-05,2]
[406637545,1772003440547,-1734576.74144038,8.784e-05,2]
[406637546,1772003440558,-2500.0,8.784e-05,2]
[406637547,1772003440568,-668.94098582,8.794e-05,2]
[406637548,1772003440577,-55353.38,8.797e-05,2]
[406637549,1772003440592,-1265.0,8.841e-05,2]
[406637550,1772003440601,-448.0,8.841e-05,2]
[406637551,1772003440611,-308.0,8.858e-05,2]
[406637552,1772003440620,-266.0,8.876e-05,2]
[406637553,1772003440631,-251.0,8.894e-05,2]
[406637554,1772003440640,-170.0,8.897e-05,2]
[406637555,1772003440649,-236.0,8.911e-05,2]
[406637556,1772003440659,-281.0,8.915e-05,2]
[406637557,1772003440669,-361.0,8.929e-05,2]
[406637558,1772003440679,-374.0,8.932e-05,2]
[406637559,1772003440687,-1380.0,8.947e-05,2]
[406637560,1772003440697,-155.0,8.95e-05,2]
[406637561,1772003440706,-425.41,8.953e-05,2]
[406637562,1772003440716,-299.99,8.96e-05,2]
[406637563,1772003440726,-150.99,8.96e-05,2]
[406637564,1772003440736,-4301.49,8.96e-05,2]
[406637565,1772003440745,-9999.99,8.96e-05,2]
[406637566,1772003440754,-5547.114768,8.962e-05,2]
[406637567,1772003440763,-1909.0,8.965e-05,2]
[406637568,1772003440777,-285.0,8.968e-05,2]
[406637569,1772003440787,-996.0,8.983e-05,2]
[406637570,1772003440796,-155.0,8.986e-05,2]
[406637571,1772003440806,-166.66,8.986e-05,2]
[406637572,1772003440815,-452.0,9.003e-05,2]
[406637573,1772003440825,-160.0,9.021e-05,2]
[406637574,1772003440834,-210.17,9.042e-05,2]
[406637575,1772003440843,-5000.0,9.273e-05,2]
[406637576,1772003440853,-250.0,9.273e-05,2]
[406637577,1772003440863,-250.0,9.273e-05,2]
[406637578,1772003440872,-166.66,9.283e-05,2]
[406637579,1772003440882,-420.0,9.404e-05,2]
[406637580,1772003440891,-1680.0,9.404e-05,2]
[406637581,1772003440900,-500.0,9.404e-05,2]
[406637582,1772003440909,-255.0,9.541e-05,2]
[406637583,1772003440919,-167415.09120883,9.578e-05,2]
[406637584,1772003440929,-166.66,9.58e-05,2]
[406637585,1772003440938,-500.0,9.678e-05,2]
[406637586,1772003440948,-500.0,9.726e-05,2]
[406637587,1772003440957,-150.0,9.726e-05,2]
[406637588,1772003440966,-211.66241719,9.726e-05,2]
[406637589,1772003440975,-254.47968626,9.726e-05,2]
[406637590,1772003440988,-500.0,9.781e-05,2]
[406637591,1772003440997,-500.0,9.836e-05,2]
[406637592,1772003441006,-187.07,9.871e-05,2]
[406637593,1772003441022,-166.66,9.876e-05,2]
[406637594,1772003441032,-500.0,9.89e-05,2]
[406637595,1772003441042,-500.0,9.945e-05,2]
[406637596,1772003441051,-500.0,0.0001,2]
[406637597,1772003441060,-156.02756201,0.0001,2]
[406637598,1772003441069,-151.0,0.0001,2]
[406637599,1772003441078,-151.0,0.0001,2]
[406637600,1772003441088,-151.0,0.0001,2]
[406637601,1772003441097,-151.0,0.0001,2]
[406637602,1772003441106,-151.0,0.0001,2]
[406637603,1772003441115,-151.0,0.0001,2]
[406637604,1772003441124,-151.0,0.0001,2]
[406637605,1772003441133,-151.0,0.0001,2]
[406637606,1772003441142,-151.0,0.0001,2]
[406637607,1772003441152,-151.0,0.0001,2]
[406637608,1772003441162,-151.0,0.0001,2]
[406637609,1772003441171,-151.0,0.0001,2]
[406637610,1772003441181,-151.0,0.0001,2]
[406637611,1772003441191,-151.0,0.0001,2]
[406637613,1772003441200,-151.0,0.0001,2]
[406637615,1772003441209,-151.0,0.0001,2]
[406637616,1772003441219,-151.0,0.0001,2]
[406637617,1772003441228,-151.0,0.0001,2]
[406637618,1772003441238,-151.0,0.0001,2]
[406637620,1772003441247,-151.0,0.0001,2]
[406637621,1772003441257,-296.74949591,0.0001,2]
[406637622,1772003441266,-150.0,0.00010026,2]
[406637623,1772003441276,-150.0,0.00010026,2]
[406637624,1772003441285,-777.0,0.00010026,2]
[406637625,1772003441294,-500.0,0.00010026,2]
[406637626,1772003441303,-500.0,0.00010055,2]
[406637627,1772003441312,-224.51537802,0.00010081,2]
[406637628,1772003441322,-150.0,0.00010081,2]
[406637629,1772003441331,-777.0,0.00010081,2]
[406637630,1772003441340,-500.0,0.00010081,2]
[406637631,1772003441350,-500.0,0.0001011,2]
[406637632,1772003441359,-239.51706489,0.00010136,2]
[406637633,1772003441368,-777.0,0.00010136,2]
[406637634,1772003441379,-500.0,0.00010136,2]
[406637635,1772003441389,-500.0,0.00010164,2]
[406637636,1772003441398,-166.66,0.00010173,2]
[406637637,1772003441407,-777.0,0.0001019,2]
[406637638,1772003441416,-500.0,0.0001019,2]
[406637639,1772003441425,-500.0,0.00010219,2]
[406637640,1772003441435,-777.0,0.00010245,2]
[406637641,1772003441444,-500.0,0.00010245,2]
[406637642,1772003441454,-486.46,0.00010264,2]
[406637643,1772003441465,-500.0,0.00010274,2]
[406637644,1772003441474,-777.0,0.000103,2]
[406637645,1772003441483,-219.84961923,0.000103,2]
[406637646,1772003441493,-500.0,0.000103,2]
[406637647,1772003441502,-500.0,0.000103,2]
[406637648,1772003441511,-500.0,0.000103,2]
[406637649,1772003441521,-500.0,0.000103,2]
[406637650,1772003441530,-500.0,0.000103,2]
[406637651,1772003441541,-671.44542235,0.000103,2]
[406637652,1772003441550,-611.11529278,0.000103,2]
[406637653,1772003441559,-500.0,0.000103,2]
[406637654,1772003441569,-500.0,0.000103,2]
[406637655,1772003441581,-500.0,0.000103,2]
[406637656,1772003441598,-500.0,0.000103,2]
[406637657,1772003441607,-500.0,0.000103,2]
[406637658,1772003441616,-500.0,0.000103,2]
[406637659,1772003441625,-977.54963407,0.000103,2]
[406637660,1772003441636,-700.0,0.000103,2]
[406637661,1772003441645,-700.0,0.000103,2]
[406637662,1772003441654,-700.0,0.000103,2]
[406637663,1772003441663,-700.0,0.000103,2]
[406637664,1772003441672,-700.0,0.000103,2]